fUST/lending_fUST_20250401
["ID","MTS","AMOUNT","RATE_DAILY","PERIOD"]
[356972542,1743511859587,-500.0,0.00019726,2]
[356972543,1743511859596,-6013.25,0.00019726,2]
[356972544,1743511859605,-500.0,0.00019726,2]
[356972545,1743511859614,-698.88,0.00019726,2]
[356972546,1743511859624,-926.1,0.00019726,2]
[356972547,1743511859633,-2627.75,0.00019726,2]
[356972548,1743511859642,-2688.77,0.00019726,2]
[356972549,1743511859651,-1319.31,0.00019726,2]
[356972550,1743511859660,-2867.87,0.00019726,2]
[356972551,1743511859669,-3629.52,0.00019726,2]
[356972552,1743511859679,-907.13,0.00019726,2]
[356972553,1743511859689,-770.9,0.00019726,2]
[356972554,1743511859698,-584.69,0.00019726,2]
[356972555,1743511859707,-543.74,0.00019726,2]
[356972556,1743511859717,-1161.33,0.00019726,2]
[356972557,1743511859726,-1377.78,0.00019726,2]
[356972558,1743511859735,-814.41,0.00019726,2]
[356972559,1743511859745,-2088.0,0.00019726,2]
[356972560,1743511859755,-539.2,0.00019726,2]
[356972561,1743511859764,-820.58,0.00019726,2]
[356972562,1743511859773,-500.0,0.00019726,2]
[356972563,1743511859783,-500.0,0.00019726,2]
[356972564,1743511859794,-500.0,0.00019726,2]
[356972565,1743511859804,-5678.07,0.00019726,2]
[356972566,1743511859813,-500.0,0.00019726,2]
[356972567,1743511859823,-500.0,0.00019726,2]
[356972568,1743511859832,-500.0,0.00019726,2]
[356972569,1743511859842,-1230.57,0.00019726,2]
[356972570,1743511859852,-932.68,0.00019726,2]
[356972571,1743511859863,-200.90538319,0.00019726,2]
[356972572,1743511859873,-500.0,0.00019726,2]
[356972573,1743511859883,-968.43,0.00019726,2]
[356972574,1743511859893,-590.49,0.00019726,2]
[356972575,1743511859903,-500.0,0.00019726,2]
[356972576,1743511859913,-1446.65,0.00019726,2]
[356972577,1743511859923,-500.0,0.00019726,2]
[356972578,1743511859933,-3087.28,0.00019726,2]
[356972579,1743511859943,-1474.18,0.00019726,2]
[356972580,1743511859953,-1315.11,0.00019726,2]
[356972581,1743511859963,-169.627,0.0002,2]
[356972582,1743511859973,-500.0,0.0002,2]
[356972583,1743511859983,-500.0,0.0002,2]
[356972584,1743511859994,-500.0,0.0002,2]
[356972585,1743511860004,-500.0,0.0002,2]
[356972586,1743511860015,-500.0,0.0002,2]
[356972587,1743511860025,-500.0,0.0002,2]
[356972588,1743511860035,-500.0,0.0002,2]
[356972589,1743511860047,-563.36213972,0.0002,2]
[356972590,1743511860058,-559.76,0.0002,2]
[356972591,1743511860069,-500.0,0.0002,2]
[356972592,1743511860080,-578.5,0.0002,2]
[356972593,1743511860091,-812.55,0.0002,2]
[356972594,1743511860102,-785.36,0.0002,2]
[356972595,1743511860112,-500.0,0.0002,2]
[356972596,1743511860125,-791.06,0.0002,2]
[356972597,1743511860135,-537.64,0.0002,2]
[356972598,1743511860146,-500.0,0.0002,2]
[356972599,1743511860157,-500.0,0.0002,2]
[356972600,1743511860167,-500.0,0.0002,2]
[356972601,1743511860177,-1670.24,0.0002,2]
[356972602,1743511860187,-500.0,0.0002,2]
[356972603,1743511860199,-500.0,0.0002,2]
[356972604,1743511860210,-500.0,0.0002,2]
[356972605,1743511860222,-500.0,0.0002,2]
[356972606,1743511860232,-500.0,0.0002,2]
[356972607,1743511860243,-500.0,0.0002,2]
[356972608,1743511860254,-707.22,0.0002,2]
[356972609,1743511860264,-500.0,0.0002,2]
[356972610,1743511860275,-500.0,0.0002,2]
[356972611,1743511860286,-500.0,0.0002,2]
[356972612,1743511860298,-901.5,0.0002,2]
[356972613,1743511860308,-500.0,0.0002,2]
[356972614,1743511860318,-864.64,0.0002,2]
[356972615,1743511860329,-619.0,0.0002,2]
[356972616,1743511860339,-896.88,0.0002,2]
[356972617,1743511860350,-390.15373128,0.0002,2]
[356972618,1743511860360,-1772.12,0.0002,2]
[356972619,1743511860371,-596.7,0.0002,2]
[356972620,1743511860381,-500.0,0.0002,2]
[356972621,1743511860391,-500.0,0.0002,2]
[356972622,1743511860402,-500.0,0.0002,2]
[356972623,1743511860412,-500.0,0.0002,2]
[356972624,1743511860422,-3356.11,0.0002,2]
[356972625,1743511860432,-540.11,0.0002,2]
[356972626,1743511860442,-640.2,0.0002,2]
[356972627,1743511860452,-564.61,0.0002,2]
[356972628,1743511860463,-1033.56,0.0002,2]
[356972629,1743511860473,-500.0,0.0002,2]
[356972630,1743511860484,-532.66,0.0002,2]
[356972631,1743511860494,-2934.38,0.0002,2]
[356972632,1743511860504,-987.59,0.0002,2]
[356972633,1743511860514,-500.0,0.0002,2]
[356972634,1743511860525,-599.43,0.0002,2]
[356972635,1743511860534,-4154.16,0.0002,2]
[356972636,1743511860544,-500.0,0.0002,2]
[356972637,1743511860554,-500.0,0.0002,2]
[356972638,1743511860564,-686.03,0.0002,2]
[356972639,1743511860574,-549.89,0.0002,2]
[356972640,1743511860584,-500.0,0.0002,2]
[356972641,1743511860594,-635.45,0.0002,2]
[356972642,1743511860604,-618.27,0.0002,2]
[356972643,1743511860615,-500.0,0.0002,2]
[356972644,1743511860625,-500.0,0.0002,2]
[356972645,1743511860635,-500.0,0.0002,2]
[356972646,1743511860645,-150.0,0.0002,30]
[356972647,1743511860655,-618.55,0.0002,2]
[356972648,1743511860666,-3733.39,0.0002,2]
[356972649,1743511860677,-500.0,0.0002,2]
[356972650,1743511860687,-589.15,0.0002,2]
[356972651,1743511860697,-552.2,0.0002,2]
[356972652,1743511860707,-2903.61,0.0002,2]
[356972653,1743511860718,-500.0,0.0002,2]
[356972654,1743511860728,-4746.78,0.0002,2]
[356972655,1743511860739,-500.0,0.0002,2]
[356972656,1743511860749,-500.0,0.0002,2]
[356972657,1743511860759,-1427.21,0.0002,2]
[356972658,1743511860769,-1831.33,0.0002,2]
[356972659,1743511860779,-829.33,0.0002,2]
[356972660,1743511860789,-500.0,0.0002,2]
[356972661,1743511860800,-500.0,0.0002,2]
[356972662,1743511860810,-901.12,0.0002,2]
[356972663,1743511860820,-10198.4,0.0002,2]
[356972664,1743511860830,-1956.22,0.0002,2]
[356972665,1743511860840,-500.0,0.0002,2]
[356972666,1743511860850,-539.81,0.0002,2]
[356972667,1743511860861,-607.67,0.0002,2]
[356972668,1743511860871,-4310.96,0.0002,2]
[356972669,1743511860881,-2071.97,0.0002,2]
[356972670,1743511860891,-274.89730025,0.0002,2]
[356972671,1743511860902,-898.84,0.0002,2]
[356972672,1743511860913,-500.0,0.0002,2]
[356972673,1743511860923,-500.0,0.0002,2]
[356972674,1743511860933,-1742.34,0.0002,2]
[356972675,1743511860944,-594.35,0.0002,2]
[356972676,1743511860954,-505.77,0.0002,2]
[356972677,1743511860964,-11519.68,0.0002,2]
[356972678,1743511860975,-3396.4,0.0002,2]
[356972679,1743511860985,-500.0,0.0002,2]
[356972680,1743511860996,-588.38,0.0002,2]
[356972681,1743511861006,-597.82,0.0002,2]
[356972682,1743511861016,-500.0,0.0002,2]
[356972683,1743511861027,-324.42039715,0.0002,2]
[356972684,1743511861038,-6013.25,0.0002,2]
[356972685,1743511861049,-500.0,0.0002,2]
[356972686,1743511861060,-698.88,0.0002,2]
[356972687,1743511861073,-926.1,0.0002,2]
[356972688,1743511861084,-2627.75,0.0002,2]
[356972689,1743511861094,-2688.77,0.0002,2]
[356972690,1743511861106,-1319.31,0.0002,2]
[356972691,1743511861117,-2867.87,0.0002,2]
[356972692,1743511861131,-3629.52,0.0002,2]
[356972693,1743511861142,-907.13,0.0002,2]
[356972694,1743511861152,-770.9,0.0002,2]
[356972695,1743511861163,-584.69,0.0002,2]
[356972696,1743511861173,-543.74,0.0002,2]
[356972697,1743511861186,-1161.33,0.0002,2]
[356972698,1743511861197,-1377.78,0.0002,2]
[356972699,1743511861209,-814.41,0.0002,2]
[356972700,1743511861219,-2088.0,0.0002,2]
[356972701,1743511861230,-539.2,0.0002,2]
[356972702,1743511861240,-820.58,0.0002,2]
[356972703,1743511861251,-500.0,0.0002,2]
[356972704,1743511861261,-500.0,0.0002,2]
[356972705,1743511861271,-500.0,0.0002,2]
[356972706,1743511861284,-5678.07,0.0002,2]
[356972707,1743511861295,-500.0,0.0002,2]
[356972708,1743511861305,-500.0,0.0002,2]
[356972709,1743511861317,-500.0,0.0002,2]
[356972710,1743511861327,-1230.57,0.0002,2]
[356972711,1743511861337,-932.68,0.0002,2]
[356972712,1743511861347,-500.0,0.0002,2]
[356972713,1743511861360,-968.43,0.0002,2]
[356972714,1743511861370,-590.49,0.0002,2]
[356972715,1743511861380,-500.0,0.0002,2]
[356972716,1743511861392,-1446.65,0.0002,2]
[356972717,1743511861402,-500.0,0.0002,2]
[356972718,1743511861412,-3087.28,0.0002,2]
[356972719,1743511861423,-1474.18,0.0002,2]
[356972720,1743511861433,-1315.11,0.0002,2]
[356972721,1743511861443,-196.0200616,0.00020073,2]
[356972722,1743511861453,-207.4,0.00020092,2]
[356972723,1743511861463,-823.0,0.000202,2]
[356972724,1743511861474,-712.61145097,0.0002021,2]
[356972725,1743511861486,-500.0,0.00020273,2]
[356972726,1743511861496,-463.28,0.00020273,2]
[356972727,1743511861507,-500.0,0.00020273,2]
[356972728,1743511861518,-500.0,0.00020273,2]
[356972729,1743511861529,-500.0,0.00020273,2]
[356972730,1743511861541,-385.88,0.00020273,2]
[356972731,1743511861551,-500.0,0.00020273,2]
[356972732,1743511861562,-559.76,0.00020273,2]
[356972733,1743511861572,-500.0,0.00020273,2]
[356972734,1743511861583,-812.55,0.00020273,2]
[356972735,1743511861593,-785.36,0.00020273,2]
[356972736,1743511861606,-500.0,0.00020273,2]
[356972737,1743511861618,-791.06,0.00020273,2]
[356972738,1743511861631,-500.0,0.00020273,2]
[356972739,1743511861641,-500.0,0.00020273,2]
[356972740,1743511861651,-500.0,0.00020273,2]
[356972741,1743511861662,-1670.24,0.00020273,2]
[356972742,1743511861672,-500.0,0.00020273,2]
[356972743,1743511861682,-500.0,0.00020273,2]
[356972744,1743511861692,-649.7667135,0.00020273,2]
[356972745,1743511861703,-500.0,0.00020273,2]
[356972746,1743511861713,-500.0,0.00020273,2]
[356972747,1743511861724,-500.0,0.00020273,2]
[356972748,1743511861734,-707.22,0.00020273,2]
[356972749,1743511861744,-500.0,0.00020273,2]
[356972750,1743511861756,-576.95851002,0.00020273,2]
[356972751,1743511861767,-500.0,0.00020273,2]
[356972752,1743511861777,-901.5,0.00020273,2]
[356972753,1743511861789,-636.75,0.00020273,2]
[356972754,1743511861799,-864.64,0.00020273,2]
[356972755,1743511861811,-619.0,0.00020273,2]
[356972756,1743511861821,-896.88,0.00020273,2]
[356972757,1743511861832,-1772.12,0.00020273,2]
[356972758,1743511861842,-596.7,0.00020273,2]
[356972759,1743511861853,-500.0,0.00020273,2]
[356972760,1743511861863,-500.0,0.00020273,2]
[356972761,1743511861873,-500.0,0.00020273,2]
[356972762,1743511861883,-500.0,0.00020273,2]
[356972763,1743511861893,-3356.11,0.00020273,2]
[356972764,1743511861905,-540.11,0.00020273,2]
[356972765,1743511861919,-640.2,0.00020273,2]
[356972766,1743511861930,-564.61,0.00020273,2]
[356972767,1743511861945,-1033.56,0.00020273,2]
[356972768,1743511861961,-500.0,0.00020273,2]
[356972769,1743511861971,-532.66,0.00020273,2]
[356972770,1743511861982,-2934.38,0.00020273,2]
[356972771,1743511861992,-987.59,0.00020273,2]
[356972772,1743511862003,-500.0,0.00020273,2]
[356972773,1743511862013,-599.43,0.00020273,2]
[356972774,1743511862024,-4154.16,0.00020273,2]
[356972775,1743511862034,-500.0,0.00020273,2]
[356972776,1743511862045,-500.0,0.00020273,2]
[356972777,1743511862056,-686.03,0.00020273,2]
[356972778,1743511862066,-549.89,0.00020273,2]
[356972779,1743511862076,-500.0,0.00020273,2]
[356972780,1743511862087,-635.45,0.00020273,2]
[356972781,1743511862097,-618.27,0.00020273,2]
[356972782,1743511862214,-500.0,0.00020273,2]
[356972783,1743511862240,-500.0,0.00020273,2]
[356972784,1743511862250,-331.66,0.00020273,2]
[356972785,1743511862261,-618.55,0.00020273,2]
[356972786,1743511862271,-3733.39,0.00020273,2]
[356972787,1743511862280,-270.56008469,0.00020273,2]
[356972788,1743511862291,-589.15,0.00020273,2]
[356972789,1743511862300,-552.2,0.00020273,2]
[356972790,1743511862310,-2903.61,0.00020273,2]
[356972791,1743511862319,-500.0,0.00020273,2]
[356972792,1743511862329,-4746.78,0.00020273,2]
[356972793,1743511862339,-500.0,0.00020273,2]
[356972794,1743511862348,-500.0,0.00020273,2]
[356972795,1743511862358,-1427.21,0.00020273,2]
[356972796,1743511862367,-1831.33,0.00020273,2]
[356972797,1743511862377,-829.33,0.00020273,2]
[356972798,1743511862387,-500.0,0.00020273,2]
[356972799,1743511862398,-500.0,0.00020273,2]
[356972800,1743511862407,-901.12,0.00020273,2]
[356972801,1743511862419,-10198.4,0.00020273,2]
[356972802,1743511862429,-1956.22,0.00020273,2]
[356972803,1743511862442,-500.0,0.00020273,2]
[356972804,1743511862452,-539.81,0.00020273,2]
[356972805,1743511862465,-607.67,0.00020273,2]
[356972806,1743511862475,-4310.96,0.00020273,2]
[356972807,1743511862484,-2071.97,0.00020273,2]
[356972808,1743511862497,-898.84,0.00020273,2]
[356972809,1743511862506,-500.0,0.00020273,2]
[356972810,1743511862516,-500.0,0.00020273,2]
[356972811,1743511862526,-1742.34,0.00020273,2]
[356972812,1743511862536,-594.35,0.00020273,2]
[356972813,1743511862546,-505.77,0.00020273,2]
[356972814,1743511862555,-11519.68,0.00020273,2]
[356972815,1743511862565,-3396.4,0.00020273,2]
[356972816,1743511862578,-500.0,0.00020273,2]
[356972817,1743511862589,-588.38,0.00020273,2]
[356972818,1743511862599,-597.82,0.00020273,2]
[356972819,1743511862609,-500.0,0.00020273,2]
[356972820,1743511862619,-6013.25,0.00020273,2]
[356972821,1743511862628,-500.0,0.00020273,2]
[356972822,1743511862639,-698.88,0.00020273,2]
[356972823,1743511862652,-926.1,0.00020273,2]
[356972824,1743511862663,-2627.75,0.00020273,2]
[356972825,1743511862673,-2688.77,0.00020273,2]
[356972826,1743511862683,-1319.31,0.00020273,2]
[356972827,1743511862695,-2867.87,0.00020273,2]
[356972828,1743511862706,-3629.52,0.00020273,2]
[356972829,1743511862715,-907.13,0.00020273,2]
[356972830,1743511862725,-770.9,0.00020273,2]
[356972831,1743511862735,-584.69,0.00020273,2]
[356972832,1743511862744,-543.74,0.00020273,2]
[356972833,1743511862754,-1161.33,0.00020273,2]
[356972834,1743511862763,-1377.78,0.00020273,2]
[356972835,1743511862772,-814.41,0.00020273,2]
[356972836,1743511862782,-2088.0,0.00020273,2]
[356972837,1743511862792,-539.2,0.00020273,2]
[356972838,1743511862801,-820.58,0.00020273,2]
[356972839,1743511862811,-500.0,0.00020273,2]
[356972840,1743511862820,-500.0,0.00020273,2]
[356972841,1743511862830,-500.0,0.00020273,2]
[356972842,1743511862839,-5678.07,0.00020273,2]
[356972843,1743511862850,-500.0,0.00020273,2]
[356972844,1743511862859,-500.0,0.00020273,2]
[356972845,1743511862869,-500.0,0.00020273,2]
[356972846,1743511862879,-1230.57,0.00020273,2]
[356972847,1743511862888,-932.68,0.00020273,2]
[356972848,1743511862898,-500.0,0.00020273,2]
[356972849,1743511862907,-968.43,0.00020273,2]
[356972850,1743511862917,-590.49,0.00020273,2]
[356972851,1743511862926,-500.0,0.00020273,2]
[356972852,1743511862936,-1446.65,0.00020273,2]
[356972853,1743511862946,-500.0,0.00020273,2]
[356972854,1743511862955,-3087.28,0.00020273,2]
[356972855,1743511862965,-1474.18,0.00020273,2]
[356972856,1743511862975,-1315.11,0.00020273,2]
[356972857,1743511862984,-1921.063722,0.00020476,2]
[356972858,1743511862993,-334.237075,0.00020476,2]
[356972859,1743511863003,-500.0,0.00020547,2]
[356972860,1743511863012,-500.0,0.00020547,2]
[356972861,1743511863022,-246.42,0.00020547,2]
[356972862,1743511863031,-500.0,0.00020547,2]
[356972863,1743511863042,-500.0,0.00020547,2]
[356972864,1743511863052,-559.76,0.00020547,2]
[356972865,1743511863062,-500.0,0.00020547,2]
[356972866,1743511863072,-812.55,0.00020547,2]
[356972867,1743511863082,-785.36,0.00020547,2]
[356972868,1743511863092,-500.0,0.00020547,2]
[356972869,1743511863102,-791.06,0.00020547,2]
[356972870,1743511863112,-500.0,0.00020547,2]
[356972871,1743511863123,-508.84,0.00020547,2]
[356972872,1743511863134,-500.0,0.00020547,2]
[356972873,1743511863144,-1670.24,0.00020547,2]
[356972874,1743511863154,-323.04,0.00020547,2]
[356972875,1743511863164,-500.0,0.00020547,2]
[356972876,1743511863175,-157.95,0.00020547,2]
[356972877,1743511863186,-184.95,0.00020547,2]
[356972878,1743511863195,-707.22,0.00020547,2]
[356972879,1743511863207,-500.0,0.00020547,2]
[356972880,1743511863218,-500.0,0.00020547,2]
[356972881,1743511863228,-901.5,0.00020547,2]
[356972882,1743511863238,-864.64,0.00020547,2]
[356972883,1743511863248,-619.0,0.00020547,2]
[356972884,1743511863258,-896.88,0.00020547,2]
[356972885,1743511863268,-1772.12,0.00020547,2]
[356972886,1743511863279,-596.7,0.00020547,2]
[356972887,1743511863288,-500.0,0.00020547,2]
[356972888,1743511863299,-500.0,0.00020547,2]
[356972889,1743511863308,-3356.11,0.00020547,2]
[356972890,1743511863319,-540.11,0.00020547,2]
[356972891,1743511863328,-640.2,0.00020547,2]
[356972892,1743511863338,-564.61,0.00020547,2]
[356972893,1743511863347,-1033.56,0.00020547,2]
[356972894,1743511863357,-500.0,0.00020547,2]
[356972895,1743511863367,-532.66,0.00020547,2]
[356972896,1743511863376,-2934.38,0.00020547,2]
[356972897,1743511863386,-987.59,0.00020547,2]
[356972898,1743511863396,-500.0,0.00020547,2]
[356972899,1743511863405,-599.43,0.00020547,2]
[356972900,1743511863416,-4154.16,0.00020547,2]
[356972901,1743511863425,-500.0,0.00020547,2]
[356972902,1743511863435,-500.0,0.00020547,2]
[356972903,1743511863445,-686.03,0.00020547,2]
[356972904,1743511863455,-549.89,0.00020547,2]
[356972905,1743511863465,-500.0,0.00020547,2]
[356972906,1743511863475,-635.45,0.00020547,2]
[356972907,1743511863485,-618.27,0.00020547,2]
[356972908,1743511863494,-500.0,0.00020547,2]
[356972909,1743511863503,-500.0,0.00020547,2]
[356972910,1743511863514,-618.55,0.00020547,2]
[356972911,1743511863524,-3733.39,0.00020547,2]
[356972912,1743511863534,-589.15,0.00020547,2]
[356972913,1743511863545,-552.2,0.00020547,2]
[356972914,1743511863554,-2903.61,0.00020547,2]
[356972915,1743511863563,-500.0,0.00020547,2]
[356972916,1743511863573,-4746.78,0.00020547,2]
[356972917,1743511863584,-500.0,0.00020547,2]
[356972918,1743511863594,-500.0,0.00020547,2]
[356972919,1743511863604,-1427.21,0.00020547,2]
[356972920,1743511863614,-1831.33,0.00020547,2]
[356972921,1743511863624,-829.33,0.00020547,2]
[356972922,1743511863634,-500.0,0.00020547,2]
[356972923,1743511863645,-479.23342691,0.00020547,2]
[356972924,1743511863655,-901.12,0.00020547,2]
[356972925,1743511863665,-10198.4,0.00020547,2]
[356972926,1743511863675,-1956.22,0.00020547,2]
[356972927,1743511863685,-500.0,0.00020547,2]
[356972928,1743511863695,-539.81,0.00020547,2]
[356972929,1743511863706,-607.67,0.00020547,2]
[356972930,1743511863717,-4310.96,0.00020547,2]
[356972931,1743511863726,-2071.97,0.00020547,2]
[356972932,1743511863737,-898.84,0.00020547,2]
[356972933,1743511863747,-500.0,0.00020547,2]
[356972934,1743511863757,-1742.34,0.00020547,2]
[356972935,1743511863767,-594.35,0.00020547,2]
[356972936,1743511863777,-505.77,0.00020547,2]
[356972937,1743511863787,-11519.68,0.00020547,2]
[356972938,1743511863797,-3396.4,0.00020547,2]
[356972939,1743511863807,-500.0,0.00020547,2]
[356972940,1743511863817,-588.38,0.00020547,2]
[356972941,1743511863827,-597.82,0.00020547,2]
[356972942,1743511863837,-500.0,0.00020547,2]
[356972943,1743511863847,-6013.25,0.00020547,2]
[356972944,1743511863857,-500.0,0.00020547,2]
[356972945,1743511863866,-698.88,0.00020547,2]
[356972946,1743511863877,-926.1,0.00020547,2]
[356972947,1743511863887,-2627.75,0.00020547,2]
[356972948,1743511863897,-2688.77,0.00020547,2]
[356972949,1743511863907,-1319.31,0.00020547,2]
[356972950,1743511863917,-2867.87,0.00020547,2]
[356972951,1743511863927,-3629.52,0.00020547,2]
[356972952,1743511863938,-907.13,0.00020547,2]
[356972953,1743511863948,-770.9,0.00020547,2]
[356972954,1743511863959,-584.69,0.00020547,2]
[356972955,1743511863969,-543.74,0.00020547,2]
[356972956,1743511863979,-1161.33,0.00020547,2]
[356972957,1743511863990,-1377.78,0.00020547,2]
[356972958,1743511864000,-814.41,0.00020547,2]
[356972959,1743511864010,-2088.0,0.00020547,2]
[356972960,1743511864021,-539.2,0.00020547,2]
[356972961,1743511864032,-820.58,0.00020547,2]
[356972962,1743511864042,-500.0,0.00020547,2]
[356972963,1743511864052,-500.0,0.00020547,2]
[356972964,1743511864062,-5678.07,0.00020547,2]
[356972965,1743511864073,-173.29058633,0.00020547,2]
[356972966,1743511864084,-500.0,0.00020547,2]
[356972967,1743511864096,-500.0,0.00020547,2]
[356972968,1743511864106,-1230.57,0.00020547,2]
[356972969,1743511864117,-932.68,0.00020547,2]
[356972970,1743511864131,-412.82704108,0.00020547,2]
[356972971,1743511864142,-968.43,0.00020547,2]
[356972972,1743511864152,-590.49,0.00020547,2]
[356972973,1743511864164,-500.0,0.00020547,2]
[356972974,1743511864175,-1446.65,0.00020547,2]
[356972975,1743511864185,-500.0,0.00020547,2]
[356972976,1743511864195,-3087.28,0.00020547,2]
[356972977,1743511864207,-1474.18,0.00020547,2]
[356972978,1743511864219,-1315.11,0.00020547,2]
[356972979,1743511864229,-712.61145097,0.00020762,2]
[356972980,1743511864239,-500.0,0.00020821,2]
[356972981,1743511864249,-500.0,0.00020821,2]
[356972982,1743511864260,-500.0,0.00020821,2]
[356972983,1743511864270,-500.0,0.00020821,2]
[356972984,1743511864281,-559.76,0.00020821,2]
[356972985,1743511864292,-500.0,0.00020821,2]
[356972986,1743511864302,-812.55,0.00020821,2]
[356972987,1743511864312,-785.36,0.00020821,2]
[356972988,1743511864322,-500.0,0.00020821,2]
[356972989,1743511864333,-791.06,0.00020821,2]
[356972990,1743511864343,-500.0,0.00020821,2]
[356972991,1743511864352,-500.0,0.00020821,2]
[356972992,1743511864362,-1670.24,0.00020821,2]
[356972993,1743511864372,-707.22,0.00020821,2]
[356972994,1743511864382,-500.0,0.00020821,2]
[356972995,1743511864392,-901.5,0.00020821,2]
[356972996,1743511864402,-864.64,0.00020821,2]
[356972997,1743511864412,-619.0,0.00020821,2]
[356972998,1743511864422,-896.88,0.00020821,2]
[356972999,1743511864432,-1772.12,0.00020821,2]
[356973000,1743511864442,-596.7,0.00020821,2]
[356973001,1743511864452,-500.0,0.00020821,2]
[356973002,1743511864462,-500.0,0.00020821,2]
[356973003,1743511864471,-3356.11,0.00020821,2]
[356973004,1743511864482,-540.11,0.00020821,2]
[356973005,1743511864492,-640.2,0.00020821,2]
[356973006,1743511864502,-564.61,0.00020821,2]
[356973007,1743511864512,-1033.56,0.00020821,2]
[356973008,1743511864522,-532.66,0.00020821,2]
[356973009,1743511864532,-2934.38,0.00020821,2]
[356973010,1743511864542,-987.59,0.00020821,2]
[356973011,1743511864552,-500.0,0.00020821,2]
[356973012,1743511864562,-4154.16,0.00020821,2]
[356973013,1743511864571,-599.43,0.00020821,2]
[356973014,1743511864581,-281.76,0.00020821,2]
[356973015,1743511864591,-500.0,0.00020821,2]
[356973016,1743511864600,-686.03,0.00020821,2]
[356973017,1743511864610,-549.89,0.00020821,2]
[356973018,1743511864620,-605.91204958,0.00020821,2]
[356973019,1743511864629,-635.45,0.00020821,2]
[356973020,1743511864639,-618.27,0.00020821,2]
[356973021,1743511864649,-500.0,0.00020821,2]
[356973022,1743511864658,-500.0,0.00020821,2]
[356973023,1743511864668,-618.55,0.00020821,2]
[356973024,1743511864678,-3733.39,0.00020821,2]
[356973025,1743511864687,-552.2,0.00020821,2]
[356973026,1743511864698,-589.15,0.00020821,2]
[356973027,1743511864707,-2903.61,0.00020821,2]
[356973028,1743511864717,-500.0,0.00020821,2]
[356973029,1743511864727,-4746.78,0.00020821,2]
[356973030,1743511864736,-500.0,0.00020821,2]
[356973031,1743511864746,-500.0,0.00020821,2]
[356973032,1743511864756,-1427.21,0.00020821,2]
[356973033,1743511864766,-829.33,0.00020821,2]
[356973034,1743511864776,-1831.33,0.00020821,2]
[356973035,1743511864785,-500.0,0.00020821,2]
[356973036,1743511864796,-901.12,0.00020821,2]
[356973037,1743511864806,-10198.4,0.00020821,2]
[356973038,1743511864816,-1956.22,0.00020821,2]
[356973039,1743511864826,-500.0,0.00020821,2]
[356973040,1743511864835,-539.81,0.00020821,2]
[356973041,1743511864845,-607.67,0.00020821,2]